bitfinex/quotes_BTCUSD_20241202
["timestamp","ask_amount","ask_price","bid_price","bid_amount"]
[1733143713568,0.00849762,95161.0,95157.0,0.05105985]
[1733143713784,0.001,95162.0,95157.0,0.05105985]
[1733143713970,0.0222152,95162.0,95157.0,0.05105985]
[1733143714183,0.0212152,95162.0,95157.0,0.0492]
[1733143714387,0.21866862,95161.0,95158.0,0.001]
[1733143714597,0.00849762,95161.0,95158.0,0.001]
[1733143714821,0.00849762,95161.0,95158.0,0.00185985]
[1733143715666,0.210159,95166.0,95158.0,0.00185985]
[1733143715874,0.00849762,95160.0,95158.0,0.00185985]
[1733143716064,0.210159,95166.0,95157.0,0.05105984]
[1733143716530,0.00849762,95165.0,95157.0,0.05105984]
[1733143716753,0.210163,95164.0,95157.0,0.05105984]
[1733143716978,0.210174,95160.0,95157.0,0.0492]
[1733143717471,0.00849762,95159.0,95158.0,0.001]
[1733143718116,0.210166,95163.0,95157.0,0.0492]
[1733143718351,0.210162,95165.0,95157.0,0.0502]
[1733143718624,0.21866762,95162.0,95157.0,0.0502]
[1733143718826,0.21017,95162.0,95157.0,0.0500627]
[1733143719048,0.00849762,95161.0,95158.0,0.001]
[1733143720354,0.00849762,95161.0,95157.0,0.0500627]
[1733143722503,0.210172,95160.0,95157.0,0.0500627]
[1733143723171,0.00849762,95159.0,95157.0,0.0500627]
[1733143723377,0.210176,95158.0,95157.0,0.0500627]
[1733143723810,0.210172,95160.0,95157.0,0.0500627]
[1733143724016,0.00849762,95158.0,95157.0,0.0510627]
[1733143724221,0.210172,95160.0,95157.0,0.0510627]
[1733143724490,0.00849762,95158.0,95157.0,0.0500627]
[1733143724681,0.210172,95160.0,95157.0,0.0500627]
[1733143724682,0.210172,95160.0,95157.0,0.0510627]
[1733143724898,0.00849762,95158.0,95157.0,0.0510627]
[1733143725109,0.00849762,95158.0,95157.0,0.0500627]
[1733143725540,0.00849762,95158.0,95157.0,0.0510627]
[1733143726644,0.00849762,95158.0,95157.0,0.0500627]
[1733143726853,0.210164,95164.0,95157.0,0.0500627]
[1733143727322,0.00849762,95163.0,95157.0,0.0500627]
[1733143727782,0.02392113,95162.0,95157.0,0.0510627]
[1733143727988,0.210175,95159.0,95157.0,0.0510627]
[1733143728409,0.210175,95159.0,95157.0,0.0500627]
[1733143728618,0.00849644,95158.0,95157.0,0.0500627]
[1733143729702,0.21017,95161.0,95157.0,0.0500627]
[1733143729919,0.420341,95161.0,95157.0,0.0500627]
[1733143730129,0.210174,95159.0,95157.0,0.0500627]
[1733143730968,0.00849644,95158.0,95157.0,0.0500627]
[1733143732736,0.00849644,95158.0,95157.0,0.0008627]
[1733143733430,0.210178,95157.0,95155.0,0.03229435]
[1733143733652,0.210178,95157.0,95155.0,0.03247284]
[1733143734092,0.00849644,95156.0,95155.0,0.03247284]
[1733143735724,0.01049644,95156.0,95155.0,0.03227284]
[1733143735927,0.38864165,95156.0,95155.0,0.03227284]
[1733143736358,0.33894165,95156.0,95155.0,0.03227284]
[1733143736783,0.34094165,95156.0,95155.0,0.03227284]
[1733143737214,0.33694165,95156.0,95155.0,0.03227284]
[1733143737666,0.33994165,95156.0,95155.0,0.03227284]
[1733143738103,0.26834165,95156.0,95155.0,0.03227284]
[1733143742544,0.01549644,95156.0,95155.0,0.03227284]
[1733143742992,0.01549644,95156.0,95155.0,0.03313554]
[1733143743661,0.01549644,95156.0,95155.0,0.15903554]
[1733143743883,0.007,95156.0,95155.0,0.15903554]
[1733143744360,0.007,95156.0,95155.0,0.37107842]
[1733143744545,0.21014,95175.0,95156.0,0.256181]
[1733143744750,0.21014,95175.0,95160.0,0.210171]
[1733143744966,0.00847336,95169.0,95161.0,0.0018598]
[1733143746095,0.00847336,95169.0,95161.0,0.00185981]
[1733143746308,0.02067907,95174.0,95161.0,0.00185981]
[1733143746756,0.01047336,95169.0,95162.0,0.210167]
[1733143746970,0.01047336,95169.0,95161.0,0.00185981]
[1733143747184,0.0037254,95170.0,95161.0,0.00185981]
[1733143747392,0.0084848,95168.0,95161.0,0.00185981]
[1733143747610,0.00848485,95169.0,95161.0,0.00185981]
[1733143747849,0.0037254,95170.0,95161.0,0.00185981]
[1733143748060,0.00848485,95168.0,95161.0,0.00185981]
[1733143748300,0.0057254,95170.0,95159.0,0.210172]
[1733143748517,0.00848485,95167.0,95160.0,0.00185978]
[1733143748723,0.001,95168.0,95161.0,0.21017]
[1733143748932,0.00848485,95166.0,95162.0,0.00185978]
[1733143749191,0.001,95168.0,95162.0,0.00185978]
[1733143749398,0.002,95168.0,95162.0,0.00185978]
[1733143749814,0.002,95168.0,95159.0,0.210172]
[1733143749993,0.0017254,95170.0,95160.0,0.00185978]
[1733143750237,0.001,95166.0,95160.0,0.00185978]
[1733143750690,0.00848485,95165.0,95160.0,0.00185978]
[1733143751130,0.210152,95169.0,95160.0,0.00185978]
[1733143751346,0.21864885,95164.0,95156.0,0.046]
[1733143751595,0.210164,95164.0,95156.0,0.046]
[1733143751827,0.04446646,95169.0,95156.0,0.046]
[1733143751828,0.00848485,95163.0,95156.0,0.046]
[1733143752024,0.00848485,95163.0,95156.0,0.0478599]
[1733143752248,0.210158,95167.0,95156.0,0.0478599]
[1733143752483,0.0085081,95162.0,95156.0,0.0478599]
[1733143752686,0.210158,95167.0,95156.0,0.0478599]
[1733143752926,0.0085081,95161.0,95156.0,0.0478599]
[1733143753141,0.210158,95167.0,95156.0,0.0478599]
[1733143753357,0.210165,95164.0,95156.0,0.0478599]
[1733143753583,0.210165,95164.0,95156.0,0.04811655]
[1733143753840,0.0085081,95163.0,95156.0,0.04811655]
[1733143754701,0.05638298,95163.0,95156.0,0.04811655]
[1733143755141,0.210167,95162.0,95156.0,0.04911655]
[1733143755359,0.05638298,95163.0,95156.0,0.04725665]
[1733143755591,0.210167,95162.0,95156.0,0.04725665]
[1733143756025,0.0085081,95161.0,95156.0,0.04725665]
[1733143756239,0.210172,95160.0,95156.0,0.04725665]
[1733143756940,0.0085081,95159.0,95156.0,0.04625665]
[1733143758665,0.210173,95160.0,95156.0,0.04625665]
[1733143758883,0.0085081,95158.0,95156.0,0.04625665]
[1733143759103,0.001,95159.0,95156.0,0.04625665]
[1733143759325,0.0085081,95157.0,95156.0,0.04625665]
[1733143759549,0.210173,95160.0,95156.0,0.04625665]
[1733143759797,0.0085081,95157.0,95156.0,0.04625665]
[1733143760025,0.211173,95160.0,95156.0,0.04625665]
[1733143760238,0.001,95160.0,95159.0,0.0475]
[1733143760453,0.001,95160.0,95159.0,0.04935976]
[1733143760669,0.001,95160.0,95159.0,0.07235976]
[1733143760916,0.001,95160.0,95159.0,0.15495976]
[1733143761115,0.0017258,95166.0,95159.0,0.15495976]
[1733143761336,0.001,95160.0,95159.0,0.23583066]
[1733143761547,0.0017258,95166.0,95160.0,0.023]
[1733143761763,0.001,95160.0,95159.0,0.1311]
[1733143762025,0.001,95160.0,95159.0,0.0485]
[1733143762228,0.210168,95162.0,95159.0,0.0475]
[1733143762444,0.21017,95161.0,95156.0,0.00025665]
[1733143763555,0.21017,95161.0,95159.0,0.001]
[1733143763743,0.21017,95161.0,95156.0,0.00025665]
[1733143763988,0.21017,95161.0,95156.0,0.00125665]
[1733143764445,0.210172,95160.0,95156.0,0.00125665]
[1733143765316,0.420344,95160.0,95156.0,0.00025665]
[1733143766836,0.420344,95160.0,95156.0,0.00125665]
[1733143767047,0.211172,95160.0,95156.0,0.00125665]
[1733143767256,0.211172,95160.0,95156.0,0.00025665]
[1733143767459,0.212172,95160.0,95156.0,0.00025665]
[1733143767669,0.422344,95160.0,95156.0,0.00025665]
[1733143768294,0.212172,95160.0,95156.0,0.00025665]
[1733143768533,0.212172,95160.0,95156.0,0.00025666]
[1733143768958,0.422345,95160.0,95156.0,0.00025666]
[1733143770798,0.210176,95158.0,95156.0,0.00025666]
[1733143771467,0.00849708,95157.0,95156.0,0.00025666]
[1733143773272,0.210172,95160.0,95156.0,0.00025666]
[1733143773502,0.00849708,95157.0,95156.0,0.00025666]
[1733143773715,0.420346,95160.0,95156.0,0.00125666]
[1733143773928,0.00849708,95157.0,95156.0,0.00125666]
[1733143774414,0.420346,95160.0,95156.0,0.00125666]
[1733143774616,0.00849708,95157.0,95156.0,0.00125666]
[1733143774841,0.420346,95160.0,95156.0,0.00125666]
[1733143775071,0.00849708,95157.0,95156.0,0.00125666]
[1733143775290,0.421346,95160.0,95156.0,0.00125666]
[1733143775501,0.00849708,95157.0,95156.0,0.00025666]
[1733143775718,0.421346,95160.0,95156.0,0.00025666]
[1733143775719,0.48595914,95160.0,95156.0,0.00025666]
[1733143775935,0.00849708,95157.0,95156.0,0.00025666]
[1733143776149,0.421346,95160.0,95156.0,0.00025666]
[1733143776399,0.00849708,95157.0,95156.0,0.00025666]
[1733143776634,0.420346,95160.0,95156.0,0.00025666]
[1733143776868,0.210176,95158.0,95156.0,0.00025666]
[1733143777523,0.00849708,95157.0,95156.0,0.00025666]
[1733143778403,0.00949708,95157.0,95156.0,0.00025666]
[1733143780201,0.01049708,95157.0,95156.0,0.00025666]
[1733143780628,0.15067047,95157.0,95156.0,0.00025666]
[1733143780839,0.40351568,95157.0,95156.0,0.00025666]
[1733143782416,0.4362733,95157.0,95156.0,0.00025666]
[1733143782623,0.33924229,95157.0,95156.0,0.00025666]
[1733143783259,0.38474229,95157.0,95156.0,0.00025666]
[1733143784152,0.483581,95156.0,95155.0,0.03313554]
[1733143784359,0.7134338,95156.0,95155.0,0.03313554]
[1733143784588,0.72186707,95156.0,95155.0,0.03313554]
[1733143785125,0.72186707,95156.0,95155.0,0.03286774]
[1733143785575,0.65884081,95156.0,95155.0,0.03286774]
[1733143786433,0.65884081,95156.0,95155.0,0.03262915]
[1733143786683,0.55,95148.0,95147.0,8e-08]
[1733143786898,0.55,95148.0,95137.0,0.0008631]
[1733143786899,0.48502,95138.0,95137.0,0.0008631]
[1733143787129,0.58786521,95138.0,95137.0,0.00092267]
[1733143787370,0.59631997,95138.0,95137.0,0.00092267]
[1733143788229,0.56011997,95138.0,95137.0,0.00092267]
[1733143788436,0.55111997,95138.0,95137.0,0.00092267]
[1733143789116,0.64077327,95138.0,95137.0,0.00092267]
[1733143790010,0.64977327,95138.0,95137.0,0.00092267]
[1733143790228,0.64077327,95138.0,95137.0,0.00092267]
[1733143790441,0.64977327,95138.0,95137.0,0.00092267]
[1733143791091,1.43407327,95138.0,95137.0,0.00092267]
[1733143791269,1.2548559,95138.0,95137.0,0.00092267]
[1733143791564,1.1782026,95138.0,95137.0,0.00092267]
[1733143794304,0.6347026,95138.0,95137.0,0.00092267]
[1733143794778,0.360238,95130.0,95129.0,0.0008631]
[1733143795035,0.46308321,95130.0,95129.0,0.00093211]
[1733143795288,0.47144508,95130.0,95129.0,0.00093211]
[1733143795930,0.47644508,95130.0,95129.0,0.00093211]
[1733143796335,0.48444508,95130.0,95129.0,0.00093211]
[1733143798525,0.38159987,95130.0,95129.0,0.00093211]
[1733143804585,0.02136187,95130.0,95129.0,0.00093211]
[1733143806082,0.25156756,95130.0,95129.0,0.00093211]
[1733143808324,0.02136187,95130.0,95129.0,0.00093211]
[1733143810083,0.02136187,95130.0,95129.0,0.12663211]
[1733143810568,0.013,95130.0,95129.0,0.12663211]
[1733143811013,0.008,95130.0,95129.0,0.12663211]
[1733143811222,0.013,95130.0,95129.0,0.12663211]
[1733143811874,0.008,95130.0,95129.0,0.12663211]
[1733143812084,0.210204,95146.0,95130.0,0.1252]
[1733143812300,0.42041,95145.0,95131.0,0.26089629]
[1733143812512,0.42792712,95145.0,95132.0,0.420468]
[1733143812721,0.42792712,95145.0,95133.0,0.0018603]
[1733143813170,0.21772212,95145.0,95134.0,0.210229]
[1733143813424,0.21772212,95145.0,95135.0,0.0018603]
[1733143813627,0.210207,95144.0,95135.0,0.0018603]
[1733143814285,0.00751712,95143.0,95135.0,0.0018603]
[1733143814503,0.00751712,95143.0,95134.0,0.210229]
[1733143814712,0.212205,95145.0,95136.0,0.210225]
[1733143814929,0.0017258,95137.0,95136.0,0.210225]
[1733143815379,0.0017258,95137.0,95135.0,0.00186031]
[1733143817443,0.0027258,95137.0,95136.0,0.210225]
[1733143817654,0.0027258,95137.0,95136.0,0.1305]
[1733143818556,0.0027258,95137.0,95136.0,0.1535]
[1733143818770,0.0017258,95137.0,95136.0,0.1545]
[1733143818977,0.0027258,95137.0,95136.0,0.1555]
[1733143822785,0.0027258,95137.0,95136.0,0.1552]
[1733143825614,0.0027258,95137.0,95136.0,0.1561953]
[1733143827834,0.0076858,95137.0,95136.0,0.1561953]
[1733143832011,0.0076858,95137.0,95136.0,0.1331953]
[1733143834050,0.0076858,95137.0,95136.0,0.0499953]
[1733143834257,0.0076858,95137.0,95136.0,0.0029953]
[1733143834713,0.01494811,95137.0,95136.0,0.0029953]
[1733143836302,0.01494811,95137.0,95136.0,0.002]
[1733143837185,0.01494811,95137.0,95136.0,0.001]
[1733143837414,0.01594811,95137.0,95136.0,0.001]
[1733143838093,0.01494811,95137.0,95135.0,0.0008629]
[1733143838368,0.210225,95136.0,95135.0,0.0008629]
[1733143839001,0.21748731,95136.0,95135.0,0.0008629]
[1733143839212,0.00726231,95136.0,95135.0,0.0008629]
[1733143840157,0.13090052,95136.0,95135.0,0.0008629]
[1733143840365,0.08826231,95136.0,95135.0,0.0008629]
[1733143841976,0.19110752,95136.0,95135.0,0.0008629]
[1733143843333,0.19010752,95136.0,95135.0,0.0008629]
[1733143843778,0.19610752,95136.0,95135.0,0.0008629]
[1733143843999,0.19510752,95136.0,95135.0,0.0008629]
[1733143844211,0.18910752,95136.0,95135.0,0.0008629]
[1733143844413,0.19510752,95136.0,95135.0,0.0008629]
[1733143845469,0.39500752,95136.0,95135.0,0.0008629]
[1733143845940,0.40400752,95136.0,95135.0,0.0008629]
[1733143849453,0.40400752,95136.0,95135.0,9e-07]
[1733143849932,0.485038,95130.0,95129.0,0.00093211]
[1733143850165,0.58788321,95130.0,95129.0,0.00093211]
[1733143850382,0.5961564,95130.0,95129.0,0.00093211]
[1733143851205,0.6001564,95130.0,95129.0,0.00093211]
[1733143851863,0.6031564,95130.0,95127.0,4.1e-07]
[1733143852086,0.6031564,95130.0,95117.0,0.0008631]
[1733143852087,0.488865,95118.0,95117.0,0.0008631]
[1733143852315,0.59171021,95118.0,95117.0,0.0008631]
[1733143852528,0.59992566,95118.0,95117.0,0.0008631]
[1733143853004,0.55162566,95118.0,95117.0,0.0008631]
[1733143853240,0.4922758,95118.0,95117.0,0.0008631]
[1733143853685,0.5012758,95118.0,95117.0,0.0008631]
[1733143853902,0.5072758,95118.0,95117.0,0.0008631]
[1733143861714,0.5072758,95118.0,95111.0,4e-07]
[1733143861715,0.1292,95117.0,95111.0,4e-07]
[1733143861962,0.441278,95112.0,95111.0,6.01e-05]
[1733143862192,0.54412321,95112.0,95111.0,6.01e-05]
[1733143862669,0.55230116,95112.0,95111.0,6.01e-05]
[1733143863366,0.33030116,95112.0,95111.0,6.01e-05]
[1733143863859,0.40838039,95112.0,95111.0,6.01e-05]
[1733143864558,0.55838039,95112.0,95111.0,6.01e-05]
[1733143865055,0.68638039,95112.0,95111.0,6.01e-05]
[1733143865275,0.69338039,95112.0,95111.0,6.01e-05]
[1733143865744,0.69338039,95112.0,95111.0,1e-07]
[1733143871906,0.56660116,95112.0,95111.0,1e-07]
[1733143872147,0.48730116,95112.0,95111.0,1e-07]
[1733143873264,0.33730116,95112.0,95111.0,1e-07]
[1733143873717,0.23445595,95112.0,95111.0,1e-07]
[1733143874387,0.02417795,95112.0,95111.0,1e-07]
[1733143874602,0.02417795,95112.0,95111.0,0.000863]
[1733143874839,0.009,95112.0,95111.0,0.000863]
[1733143875084,0.02017796,95112.0,95111.0,0.000863]
[1733143875553,0.00817796,95112.0,95111.0,0.000863]
[1733143875777,0.01117796,95112.0,95111.0,0.000863]
[1733143876006,0.005,95112.0,95111.0,0.000863]
[1733143876488,0.210275,95114.0,95111.0,0.000863]
[1733143876703,0.2,95149.0,95111.0,0.000863]
[1733143876919,0.209275,95114.0,95111.0,0.000863]
[1733143877131,0.210278,95112.0,95111.0,0.001863]
[1733143877803,0.2184953,95112.0,95111.0,0.000863]
[1733143879620,0.2234953,95112.0,95111.0,0.000863]
[1733143880040,0.2264953,95112.0,95111.0,0.000863]
[1733143880816,0.210296,95104.0,95103.0,0.0007257]
[1733143881509,0.2185133,95104.0,95103.0,0.0007257]
[1733143882171,0.2195133,95104.0,95103.0,0.0007257]
[1733143882414,0.2205133,95104.0,95103.0,0.0007257]
[1733143883092,0.2195133,95104.0,95103.0,0.0007257]
[1733143883308,0.2185133,95104.0,95103.0,0.0007257]
[1733143883518,0.2255133,95104.0,95103.0,0.0007257]
[1733143883912,0.2215133,95104.0,95103.0,0.0007257]
[1733143884652,0.630912,95100.0,95091.0,0.0009878]
[1733143884897,0.15,95098.0,95074.0,0.0008631]
[1733143885133,0.210353,95078.0,95077.0,0.00104198]
[1733143885786,0.21856028,95078.0,95077.0,0.00104198]
[1733143886354,0.47140549,95078.0,95077.0,0.00204198]
[1733143887068,0.49760847,95078.0,95077.0,0.00204198]
[1733143887212,0.49760847,95078.0,95077.0,0.00104198]
[1733143887801,0.47140549,95078.0,95077.0,0.00104198]
[1733143888745,0.47340549,95078.0,95077.0,0.00104198]
[1733143889154,0.47140549,95078.0,95077.0,0.00104198]
[1733143889357,0.47340549,95078.0,95077.0,0.00104198]
[1733143889566,0.49931218,95078.0,95077.0,0.00104198]
[1733143889768,0.49731218,95078.0,95077.0,0.00104198]
[1733143890409,0.50531218,95078.0,95077.0,0.00104198]
[1733143891443,0.52176302,95078.0,95077.0,0.00104198]
[1733143895273,0.547966,95078.0,95077.0,0.00104198]
[1733143899006,1.291466,95078.0,95077.0,0.00104198]
[1733143899254,1.39316302,95078.0,95077.0,0.00104198]
[1733143900152,1.38516302,95078.0,95077.0,0.00104198]
[1733143900384,1.39416302,95078.0,95077.0,0.00104198]
[1733143900600,1.38916302,95078.0,95077.0,0.00104198]
[1733143901467,1.42116302,95078.0,95077.0,0.00104198]
[1733143901682,1.41216302,95078.0,95077.0,0.00104198]
[1733143902390,1.42116302,95078.0,95077.0,0.00104198]
[1733143904418,1.42116302,95078.0,95077.0,9.8e-07]
[1733143904557,0.8935,95077.0,95074.0,0.0008631]
[1733143904774,0.99634521,95077.0,95076.0,0.00146111]
[1733143905004,1.02564235,95077.0,95076.0,0.00146111]
[1733143905940,1.03464235,95077.0,95076.0,0.00146111]
[1733143906196,1.04364235,95077.0,95076.0,0.00146111]
[1733143909129,0.35,95068.0,95056.0,0.0009851]
[1733143909385,0.35,95068.0,95044.0,0.00027906]
[1733143909386,0.360397,95058.0,95044.0,0.0009959]
[1733143909600,0.210426,95045.0,95044.0,0.0009959]
[1733143909822,0.31327121,95045.0,95044.0,0.0009959]
[1733143910059,0.31954391,95045.0,95043.0,0.00027906]
[1733143910266,0.1347996,95044.0,95043.0,0.00027906]
[1733143910501,0.14107226,95044.0,95033.0,0.0617143]
[1733143911010,0.21045,95034.0,95033.0,0.0617143]
[1733143911457,0.21671777,95034.0,95033.0,0.0617143]
[1733143913060,0.21771777,95034.0,95033.0,0.0617143]
[1733143915550,0.21271777,95034.0,95033.0,0.0617143]
[1733143918080,0.00726777,95034.0,95033.0,0.0617143]
[1733143918329,0.001,95034.0,95033.0,0.0617143]
[1733143919917,0.0072676,95034.0,95033.0,0.0617143]
[1733143920142,0.001,95034.0,95033.0,0.0617143]
[1733143920582,0.0072676,95034.0,95033.0,0.1438143]
[1733143920799,0.001,95034.0,95033.0,0.1438143]
[1733143921015,0.001,95034.0,95033.0,0.14567647]
[1733143921703,0.00059286,95044.0,95041.0,0.210435]
[1733143921948,0.00059286,95044.0,95043.0,0.0009805]
[1733143922638,0.00059286,95044.0,95043.0,0.0481805]
[1733143923094,0.00059286,95044.0,95043.0,0.12954264]
[1733143923760,0.00159286,95044.0,95043.0,0.30847331]
[1733143924003,0.00159286,95044.0,95043.0,0.43052571]
[1733143924252,0.00059286,95044.0,95043.0,0.43052571]
[1733143924702,0.210364,95074.0,95063.0,0.210385]
[1733143924924,0.00626229,95073.0,95064.0,0.1304]
[1733143925196,0.210374,95069.0,95064.0,0.1304]
[1733143925635,0.210396,95059.0,95056.0,0.0465]
[1733143925869,0.210396,95059.0,95043.0,0.00359286]
[1733143926102,0.210421,95048.0,95043.0,0.00359286]
[1733143926609,0.210424,95046.0,95043.0,0.00359286]
[1733143926825,0.00626229,95047.0,95043.0,0.00359286]
[1733143926826,0.00626229,95047.0,95043.0,0.00059286]
[1733143927061,0.210421,95048.0,95043.0,0.00059286]
[1733143927297,0.210422,95047.0,95043.0,0.00059286]
[1733143927518,0.00626229,95046.0,95043.0,0.00059286]
[1733143927763,0.210426,95045.0,95043.0,0.00059286]
[1733143927975,0.210426,95045.0,95043.0,0.00159286]
[1733143928195,0.00626229,95044.0,95043.0,0.00159286]
[1733143928411,0.00626229,95044.0,95043.0,0.00059286]
[1733143928858,0.00626229,95044.0,95043.0,0.00359286]
[1733143929079,0.00626229,95044.0,95043.0,0.00059286]
[1733143929506,0.210431,95043.0,95042.0,0.04559744]
[1733143929728,0.210431,95043.0,95042.0,0.04565714]
[1733143929957,0.00626229,95043.0,95042.0,0.04565714]
[1733143931062,0.00726229,95043.0,95042.0,0.04565714]
[1733143932185,0.07111482,95043.0,95042.0,5.97e-05]
[1733143932416,0.00726229,95043.0,95042.0,5.97e-05]
[1733143933519,0.3855075,95043.0,95042.0,5.97e-05]
[1733143933732,0.3399075,95043.0,95042.0,5.97e-05]
[1733143934443,0.3389075,95043.0,95042.0,5.97e-05]
[1733143934657,0.3389075,95043.0,95042.0,0.000922]
[1733143934891,0.2751075,95043.0,95042.0,0.001922]
[1733143936060,0.2681075,95043.0,95042.0,0.001922]
[1733143936266,0.28866532,95043.0,95042.0,0.001922]
[1733143936495,0.37846532,95043.0,95042.0,0.001922]
[1733143938125,0.21045,95034.0,95033.0,0.0150777]
[1733143938380,0.62093217,95034.0,95033.0,0.01522239]
[1733143938625,0.360455,95032.0,95031.0,0.00014469]
[1733143938856,0.46330021,95032.0,95031.0,0.0003236]
[1733143939069,0.59472569,95032.0,95031.0,0.0003236]
[1733143939312,0.54632569,95032.0,95031.0,0.0003236]
[1733143940718,0.55432569,95032.0,95031.0,0.0003236]
[1733143941173,0.56332569,95032.0,95031.0,0.0003236]
[1733143941395,0.54632569,95032.0,95031.0,0.0003236]
[1733143941908,0.55532569,95032.0,95031.0,0.0003236]
[1733143942134,0.54632569,95032.0,95031.0,0.0003236]
[1733143942779,0.55532569,95032.0,95031.0,0.0003236]
[1733143943219,0.360477,95022.0,95021.0,0.0008627]
[1733143943443,0.15,95021.0,95017.0,0.002]
[1733143943672,0.25284521,95021.0,95017.0,0.002]
[1733143943888,0.38204521,95021.0,95017.0,0.002]
[1733143944108,0.420964,95020.0,95017.0,0.002]
[1733143944367,0.25284521,95019.0,95017.0,0.00214418]
[1733143944621,0.25906169,95019.0,95017.0,0.00214418]
[1733143945287,0.360486,95018.0,95017.0,0.00214418]
[1733143945501,0.46333121,95018.0,95017.0,0.00214418]
[1733143945936,0.46954769,95018.0,95017.0,0.00214418]
[1733143946192,0.46954769,95018.0,95017.0,1e-08]
[1733143946402,0.4906357,95018.0,95017.0,1e-08]
[1733143946619,0.4906357,95018.0,95012.0,0.0009944]
[1733143946620,0.360497,95013.0,95012.0,1e-08]
[1733143946898,0.210518,95004.0,95001.0,0.011]
[1733143947109,0.360521,95002.0,95001.0,0.011]
[1733143947336,0.360521,95002.0,94970.0,0.00027906]
[1733143947337,0.210539,94994.0,94970.0,0.00027906]
[1733143947558,0.8259,95000.0,94970.0,0.00027906]
[1733143947559,0.360559,94985.0,94970.0,0.00027906]
[1733143948224,0.21669605,94985.0,94970.0,0.00027906]
[1733143948451,0.21669605,94985.0,94969.0,0.210594]
[1733143948672,0.00613705,94985.0,94974.0,0.210583]
[1733143948908,0.00613705,94985.0,94969.0,0.210594]
[1733143949154,0.006133,94985.0,94973.0,0.210585]
[1733143949409,0.21055,94989.0,94973.0,0.210585]
[1733143949641,0.006133,94985.0,94981.0,0.00272637]
[1733143949868,0.210544,94992.0,94984.0,0.20186324]
[1733143950340,0.001,94985.0,94984.0,0.20186324]
[1733143950576,0.001,94985.0,94984.0,0.2]
[1733143951036,0.213544,94992.0,94984.0,0.2]
[1733143951262,0.213544,94992.0,94985.0,0.00186326]
[1733143951470,0.00614025,94991.0,94985.0,0.00186326]
[1733143951700,0.00614025,94991.0,94987.0,0.1285]
[1733143951934,0.00614025,94991.0,94989.0,0.21055]
[1733143952145,0.003,94992.0,94990.0,0.00186304]
[1733143952627,0.210517,95005.0,94990.0,0.21241004]
[1733143952849,0.00614044,94991.0,94990.0,0.21241004]
[1733143953060,0.210527,95000.0,94990.0,0.00186304]
[1733143953330,0.210536,94996.0,94987.0,0.1285]
[1733143953798,0.001,94991.0,94987.0,0.1285]
[1733143954049,0.002,94992.0,94988.0,0.00186312]
[1733143954262,0.002,94992.0,94988.0,0.21241412]
[1733143954747,0.002,94992.0,94991.0,0.000997]
[1733143955441,0.002,94992.0,94991.0,0.13912516]
[1733143955682,0.00017784,95013.0,95003.0,0.210518]
[1733143955900,0.00017784,95013.0,95008.0,0.081]
[1733143956121,0.00017784,95013.0,95010.0,0.256704]
[1733143956334,0.00017784,95013.0,95011.0,0.00186269]
[1733143956553,0.00017784,95013.0,95011.0,0.24631937]
[1733143956764,0.00017784,95013.0,95011.0,0.2105]
[1733143957137,0.00017784,95013.0,95012.0,0.32584521]
[1733143958874,0.00117784,95013.0,95012.0,0.32546071]
[1733143959727,0.00117784,95013.0,95012.0,0.30246071]
[1733143960166,0.00290384,95013.0,95012.0,0.30246071]
[1733143960382,0.00290384,95013.0,95012.0,0.30345721]
[1733143961054,0.00390384,95013.0,95012.0,0.30345721]
[1733143961920,0.00290384,95013.0,95012.0,0.30345721]
[1733143962187,0.00390384,95013.0,95012.0,0.30345721]
[1733143962880,0.00390384,95013.0,95012.0,0.37851981]
[1733143963129,0.210378,95067.0,95025.0,0.2]
[1733143963397,0.00190459,95044.0,95029.0,0.1294]
[1733143963585,0.00619035,95043.0,95034.0,0.210449]
[1733143963834,0.00190459,95044.0,95036.0,0.210446]
[1733143964104,0.00190459,95044.0,95038.0,0.210442]
[1733143964329,0.00190459,95044.0,95039.0,0.00186214]
[1733143964567,0.00390459,95044.0,95039.0,0.04413745]
[1733143965020,0.00190459,95044.0,95040.0,0.420873]
[1733143965244,0.00390459,95044.0,95042.0,0.210433]
[1733143965463,0.00390459,95044.0,95043.0,0.00285447]
[1733143965464,0.00790459,95044.0,95043.0,0.00285447]
[1733143965686,0.00590459,95044.0,95043.0,0.00285447]
[1733143965917,0.00390459,95044.0,95043.0,0.04945495]
[1733143967036,0.00390459,95044.0,95043.0,0.15230016]
[1733143967547,0.00190459,95044.0,95043.0,0.49960016]
[1733143967835,0.00190459,95044.0,95043.0,0.49973809]
[1733143968231,0.00190459,95044.0,95043.0,0.50073809]
[1733143969843,0.10190459,95044.0,95043.0,0.50073809]
[1733143972035,0.10190459,95044.0,95043.0,0.49973809]
[1733143972251,0.10190459,95044.0,95043.0,0.49773809]
[1733143972454,0.10290459,95044.0,95043.0,0.50773809]
[1733143972913,0.10290459,95044.0,95043.0,0.50473809]
[1733143973372,0.10390459,95044.0,95043.0,0.50773809]
[1733143973805,0.10290459,95044.0,95043.0,0.50073809]
[1733143974230,0.10390459,95044.0,95043.0,0.46313761]
[1733143974442,0.10390459,95044.0,95043.0,0.1372924]
[1733143974657,0.10390459,95044.0,95043.0,0.24013761]
[1733143974877,0.10290459,95044.0,95043.0,0.43713761]
[1733143975108,0.10190459,95044.0,95043.0,0.43213761]
[1733143975321,0.10190459,95044.0,95043.0,0.53496907]
[1733143975553,0.10290459,95044.0,95043.0,0.56196907]
[1733143975779,0.10190459,95044.0,95043.0,0.45113761]
[1733143976022,0.10190459,95044.0,95043.0,0.45313761]
[1733143976492,0.10190459,95044.0,95043.0,0.45113761]
[1733143976712,0.10190459,95044.0,95043.0,0.25113761]
[1733143976910,0.10190459,95044.0,95043.0,0.45113761]
[1733143977127,0.10190459,95044.0,95043.0,0.53833957]
[1733143977342,0.10290459,95044.0,95043.0,0.54333957]
[1733143977600,0.10190459,95044.0,95043.0,0.53833957]
[1733143978052,0.10290459,95044.0,95043.0,0.54633957]
[1733143978503,0.10290459,95044.0,95043.0,0.55033957]
[1733143978714,0.10190459,95044.0,95043.0,0.54233957]
[1733143979189,0.10290459,95044.0,95043.0,0.54833957]
[1733143979429,0.10290459,95044.0,95043.0,0.54433957]
[1733143980097,0.10290459,95044.0,95043.0,0.54733957]
[1733143981235,0.10290459,95044.0,95043.0,0.1342924]
[1733143981447,0.10290459,95044.0,95043.0,0.0099924]
[1733143981671,0.10918319,95044.0,95043.0,0.0099924]
[1733143982358,0.10918319,95044.0,95043.0,0.009]
[1733143982871,0.25918319,95044.0,95043.0,0.009]
[1733143983101,0.25918319,95044.0,95043.0,0.006]
[1733143983545,0.26118319,95044.0,95043.0,0.006]
[1733143984221,0.26118319,95044.0,95031.0,0.0009922]